[Event "Titled Tuesday Blitz June 6 Late 2023"]
[White "Kleiman, Jake"]
[Black "Ozates, Tuna"]
[WhiteFideId "2020041"]
[BlackFideId "6354521"]
[WhiteElo "2685"]
[BlackElo "2151"]
[Result "1-0"]
[Round "11"]
[TimeControl "180+2"]
[Date "2023.06.07"]
[WhiteClock "0:00:35"]
[BlackClock "0:00:28"]
[Board "34"]

1. e4 {[%clk 0:02:57]}  Nf6 {[%clk 0:02:57]} 2. e5 {[%clk 0:02:57]}  Nd5 {[%clk 0:02:57]} 3. d4 {[%clk 0:02:57]}  d6 {[%clk 0:02:58]} 4. Nf3 {[%clk 0:02:58]}  dxe5 {[%clk 0:02:58]} 5. Nxe5 {[%clk 0:02:59]}  c6 {[%clk 0:02:59]} 6. Bc4 {[%clk 0:02:59]}  Nd7 {[%clk 0:02:56]} 7. Nf3 {[%clk 0:02:53]}  N7f6 {[%clk 0:02:56]} 8. h3 {[%clk 0:02:52]}  Bf5 {[%clk 0:02:56]} 9. O-O {[%clk 0:02:52]}  e6 {[%clk 0:02:57]} 10. Re1 {[%clk 0:02:53]}  Bd6 {[%clk 0:02:57]} 11. Bb3 {[%clk 0:02:53]}  O-O {[%clk 0:02:56]} 12. Nbd2 {[%clk 0:02:48]}  a5 {[%clk 0:02:56]} 13. c3 {[%clk 0:02:45]}  a4 {[%clk 0:02:51]} 14. Bxa4 {[%clk 0:02:43]}  b5 {[%clk 0:02:30]} 15. Bc2 {[%clk 0:02:41]}  b4 {[%clk 0:02:30]} 16. c4 {[%clk 0:02:37]}  Nf4 {[%clk 0:02:30]} 17. Bxf5 {[%clk 0:02:28]}  exf5 {[%clk 0:02:30]} 18. Nf1 {[%clk 0:02:23]}  Ne6 {[%clk 0:02:23]} 19. Qc2 {[%clk 0:02:08]}  g6 {[%clk 0:02:23]} 20. b3 {[%clk 0:02:08]}  Bc7 {[%clk 0:02:18]} 21. Bb2 {[%clk 0:02:06]}  Re8 {[%clk 0:02:12]} 22. N1d2 {[%clk 0:01:54]}  Qd6 {[%clk 0:02:07]} 23. d5 {[%clk 0:01:46]}  Nf4 {[%clk 0:02:05]} 24. c5 {[%clk 0:01:31]}  Qxd5 {[%clk 0:01:52]} 25. Bxf6 {[%clk 0:01:30]}  Nh5 {[%clk 0:01:30]} 26. Bb2 {[%clk 0:01:25]}  g5 {[%clk 0:01:21]} 27. Nxg5 {[%clk 0:01:12]}  h6 {[%clk 0:01:07]} 28. Ngf3 {[%clk 0:01:12]}  Kh7 {[%clk 0:01:08]} 29. Qc4 {[%clk 0:01:05]}  Qd7 {[%clk 0:01:00]} 30. Qh4 {[%clk 0:00:57]}  Nf4 {[%clk 0:00:54]} 31. Qf6 {[%clk 0:00:38]}  Rg8 {[%clk 0:00:52]} 32. Re7 {[%clk 0:00:38]}  Rxg2+ {[%clk 0:00:52]} 33. Kh1 {[%clk 0:00:38]}  Qd5 {[%clk 0:00:28]} 34. Rxf7+ {[%clk 0:00:35]} 1-0


[Site "https://www.chess.com"]

[Event "Titled Tuesday Blitz June 6 Late 2023"]
[White "Skatchkov, Pavel"]
[Black "Mieles Palau, Daniel"]
[WhiteFideId "4121848"]
[BlackFideId "3600467"]
[WhiteElo "2476"]
[BlackElo "2344"]
[Result "1-0"]
[Round "11"]
[TimeControl "180+2"]
[Date "2023.06.07"]
[WhiteClock "0:00:48"]
[BlackClock "0:00:01"]
[Board "36"]

1. d4 {[%clk 0:03:00]}  d5 {[%clk 0:02:58]} 2. c4 {[%clk 0:03:01]}  e6 {[%clk 0:02:58]} 3. Nf3 {[%clk 0:03:01]}  Nf6 {[%clk 0:02:58]} 4. g3 {[%clk 0:03:01]}  c6 {[%clk 0:02:59]} 5. Bg2 {[%clk 0:03:01]}  dxc4 {[%clk 0:02:59]} 6. O-O {[%clk 0:03:01]}  b5 {[%clk 0:02:59]} 7. Ne5 {[%clk 0:03:01]}  Bb7 {[%clk 0:02:58]} 8. Nc3 {[%clk 0:03:01]}  a6 {[%clk 0:02:55]} 9. b3 {[%clk 0:03:02]}  Bb4 {[%clk 0:02:44]} 10. Bb2 {[%clk 0:02:57]}  Bxc3 {[%clk 0:02:37]} 11. Bxc3 {[%clk 0:02:57]}  cxb3 {[%clk 0:02:37]} 12. Qxb3 {[%clk 0:02:47]}  O-O {[%clk 0:02:37]} 13. Rfd1 {[%clk 0:02:46]}  Nd5 {[%clk 0:02:35]} 14. Bb2 {[%clk 0:02:44]}  Nd7 {[%clk 0:02:30]} 15. e4 {[%clk 0:02:43]}  N5b6 {[%clk 0:02:11]} 16. Ba3 {[%clk 0:02:36]}  Re8 {[%clk 0:02:05]} 17. Rac1 {[%clk 0:02:17]}  Rc8 {[%clk 0:02:03]} 18. Qf3 {[%clk 0:02:08]}  Qf6 {[%clk 0:01:53]} 19. Qc3 {[%clk 0:02:04]}  h6 {[%clk 0:01:19]} 20. Bd6 {[%clk 0:01:55]}  Red8 {[%clk 0:01:03]} 21. Qb4 {[%clk 0:01:40]}  Nxe5 {[%clk 0:00:46]} 22. dxe5 {[%clk 0:01:39]}  Qg6 {[%clk 0:00:42]} 23. Bf3 {[%clk 0:01:32]}  c5 {[%clk 0:00:40]} 24. Rxc5 {[%clk 0:01:20]}  Nc4 {[%clk 0:00:34]} 25. Rd4 {[%clk 0:01:14]}  Qg5 {[%clk 0:00:17]} 26. Rdxc4 {[%clk 0:01:12]}  bxc4 {[%clk 0:00:14]} 27. Qxb7 {[%clk 0:01:02]}  Rxc5 {[%clk 0:00:14]} 28. Bxc5 {[%clk 0:01:02]}  c3 {[%clk 0:00:13]} 29. h4 {[%clk 0:00:49]}  Qc1+ {[%clk 0:00:04]} 30. Kg2 {[%clk 0:00:48]}  c2 {[%clk 0:00:04]} 31. Bh5 {[%clk 0:00:47]}  Qd2 {[%clk 0:00:01]} 32. Qxf7+ {[%clk 0:00:48]}  Kh8 {[%clk 0:00:01]} 33. Bf8 {[%clk 0:00:48]} 1-0


[Site "https://www.chess.com"]

[Event "Titled Tuesday Blitz June 6 Late 2023"]
[White "Amburgy, Ryan"]
[Black "Vovk, Orest"]
[WhiteFideId "30924820"]
[BlackFideId "14113490"]
[WhiteElo "2134"]
[BlackElo "2215"]
[Result "1-0"]
[Round "11"]
[TimeControl "180+2"]
[Date "2023.06.07"]
[WhiteClock "0:00:29"]
[BlackClock "0:00:03"]
[Board "37"]

1. d4 {[%clk 0:03:00]}  h6 {[%clk 0:02:52]} 2. g3 {[%clk 0:02:48]}  g5 {[%clk 0:02:51]} 3. Bg2 {[%clk 0:02:48]}  Bg7 {[%clk 0:02:52]} 4. e4 {[%clk 0:02:44]}  c5 {[%clk 0:02:52]} 5. c3 {[%clk 0:02:44]}  Nc6 {[%clk 0:02:51]} 6. Ne2 {[%clk 0:02:44]}  Qb6 {[%clk 0:02:50]} 7. d5 {[%clk 0:02:42]}  Ne5 {[%clk 0:02:50]} 8. f4 {[%clk 0:02:30]}  gxf4 {[%clk 0:02:46]} 9. gxf4 {[%clk 0:02:31]}  Ng6 {[%clk 0:02:46]} 10. Nd2 {[%clk 0:02:19]}  Nh4 {[%clk 0:02:42]} 11. Bh3 {[%clk 0:02:08]}  d6 {[%clk 0:02:38]} 12. Bxc8 {[%clk 0:02:08]}  Rxc8 {[%clk 0:02:36]} 13. Rg1 {[%clk 0:02:03]}  Kf8 {[%clk 0:02:26]} 14. Qb3 {[%clk 0:02:02]}  Qa6 {[%clk 0:02:07]} 15. c4 {[%clk 0:01:51]}  Rh7 {[%clk 0:01:38]} 16. Qh3 {[%clk 0:01:39]}  b5 {[%clk 0:01:27]} 17. cxb5 {[%clk 0:01:25]}  Qb7 {[%clk 0:01:27]} 18. Qxh4 {[%clk 0:01:26]}  Qxb5 {[%clk 0:01:27]} 19. Qh3 {[%clk 0:01:18]}  Rc7 {[%clk 0:01:26]} 20. Qb3 {[%clk 0:01:16]}  Qa6 {[%clk 0:01:21]} 21. Qc4 {[%clk 0:01:13]}  Qc8 {[%clk 0:01:17]} 22. Nf3 {[%clk 0:01:02]}  Rb7 {[%clk 0:01:05]} 23. e5 {[%clk 0:00:55]}  Rb4 {[%clk 0:00:58]} 24. Qd3 {[%clk 0:00:55]}  Rh8 {[%clk 0:00:52]} 25. Bd2 {[%clk 0:00:52]}  Rxb2 {[%clk 0:00:50]} 26. Bc3 {[%clk 0:00:52]}  c4 {[%clk 0:00:45]} 27. Qe4 {[%clk 0:00:43]}  Rb7 {[%clk 0:00:37]} 28. Rb1 {[%clk 0:00:38]}  Qb8 {[%clk 0:00:34]} 29. Rxb7 {[%clk 0:00:37]}  Qxb7 {[%clk 0:00:35]} 30. Qd4 {[%clk 0:00:29]}  h5 {[%clk 0:00:31]} 31. Rxg7 {[%clk 0:00:27]}  Kxg7 {[%clk 0:00:31]} 32. exd6+ {[%clk 0:00:28]}  f6 {[%clk 0:00:26]} 33. dxe7 {[%clk 0:00:25]}  Qxe7 {[%clk 0:00:26]} 34. d6 {[%clk 0:00:25]}  Qd7 {[%clk 0:00:19]} 35. Qc5 {[%clk 0:00:25]}  Nh6 {[%clk 0:00:15]} 36. Qc7 {[%clk 0:00:25]}  Qxc7 {[%clk 0:00:15]} 37. dxc7 {[%clk 0:00:26]}  Rc8 {[%clk 0:00:14]} 38. Ba5 {[%clk 0:00:26]}  Nf5 {[%clk 0:00:10]} 39. Ned4 {[%clk 0:00:27]}  Nxd4 {[%clk 0:00:06]} 40. Nxd4 {[%clk 0:00:28]}  Kf7 {[%clk 0:00:05]} 41. Nc6 {[%clk 0:00:28]}  Ra8 {[%clk 0:00:02]} 42. Nxa7 {[%clk 0:00:28]}  Rxa7 {[%clk 0:00:03]} 43. c8=Q {[%clk 0:00:28]}  Rxa5 {[%clk 0:00:03]} 44. Qc7+ {[%clk 0:00:29]} 1-0


[Site "https://www.chess.com"]

[Event "Titled Tuesday Blitz June 6 Late 2023"]
[White "Adewumi, Tanitoluwa"]
[Black "Jovic, Stanoje"]
[WhiteFideId "30966396"]
[BlackFideId "905020"]
[WhiteElo "2623"]
[BlackElo "2236"]
[Result "1-0"]
[Round "11"]
[TimeControl "180+2"]
[Date "2023.06.07"]
[WhiteClock "0:01:40"]
[BlackClock "0:01:06"]
[Board "41"]

1. e4 {[%clk 0:03:00]}  c6 {[%clk 0:02:59]} 2. d4 {[%clk 0:03:00]}  d5 {[%clk 0:02:59]} 3. exd5 {[%clk 0:03:01]}  cxd5 {[%clk 0:02:59]} 4. Bd3 {[%clk 0:03:02]}  Nc6 {[%clk 0:02:59]} 5. c3 {[%clk 0:03:02]}  g6 {[%clk 0:02:59]} 6. Nf3 {[%clk 0:02:57]}  Nh6 {[%clk 0:02:59]} 7. O-O {[%clk 0:02:57]}  f6 {[%clk 0:02:59]} 8. b4 {[%clk 0:02:57]}  a6 {[%clk 0:02:57]} 9. a4 {[%clk 0:02:57]}  Nf7 {[%clk 0:02:56]} 10. Re1 {[%clk 0:02:57]}  Bg7 {[%clk 0:02:56]} 11. Ra2 {[%clk 0:02:57]}  O-O {[%clk 0:02:56]} 12. Ba3 {[%clk 0:02:54]}  e5 {[%clk 0:02:53]} 13. b5 {[%clk 0:02:53]}  axb5 {[%clk 0:02:42]} 14. axb5 {[%clk 0:02:54]}  Re8 {[%clk 0:02:39]} 15. bxc6 {[%clk 0:02:53]}  e4 {[%clk 0:02:33]} 16. cxb7 {[%clk 0:02:54]}  Bxb7 {[%clk 0:02:30]} 17. Bb5 {[%clk 0:02:53]}  Re6 {[%clk 0:02:21]} 18. Nfd2 {[%clk 0:02:46]}  Bf8 {[%clk 0:02:11]} 19. Qb3 {[%clk 0:02:42]}  Qa5 {[%clk 0:02:01]} 20. c4 {[%clk 0:01:59]}  Rb6 {[%clk 0:01:58]} 21. Bxf8 {[%clk 0:01:43]}  Qxa2 {[%clk 0:01:58]} 22. Qxa2 {[%clk 0:01:44]}  Rxa2 {[%clk 0:01:57]} 23. Bc5 {[%clk 0:01:45]}  Re6 {[%clk 0:01:36]} 24. cxd5 {[%clk 0:01:45]}  Bxd5 {[%clk 0:01:36]} 25. Nc3 {[%clk 0:01:45]}  Rxd2 {[%clk 0:01:35]} 26. Nxd5 {[%clk 0:01:45]}  Nd6 {[%clk 0:01:27]} 27. Bd7 {[%clk 0:01:41]}  e3 {[%clk 0:01:06]} 28. Bxe6+ {[%clk 0:01:40]} 1-0


[Site "https://www.chess.com"]

[Event "Titled Tuesday Blitz June 6 Late 2023"]
[White "Mayeregger, Arnold"]
[Black "Tejedor Fuente, Enrique"]
[WhiteFideId "3705226"]
[BlackFideId "2299100"]
[WhiteElo "2038"]
[BlackElo "2496"]
[Result "1-0"]
[Round "11"]
[TimeControl "180+2"]
[Date "2023.06.07"]
[WhiteClock "0:00:19"]
[BlackClock "0:00:06"]
[Board "42"]

1. d4 {[%clk 0:03:00]}  e6 {[%clk 0:02:57]} 2. c4 {[%clk 0:03:01]}  Nf6 {[%clk 0:02:56]} 3. Nc3 {[%clk 0:03:01]}  d5 {[%clk 0:02:56]} 4. cxd5 {[%clk 0:03:01]}  exd5 {[%clk 0:02:57]} 5. Bg5 {[%clk 0:03:01]}  c6 {[%clk 0:02:56]} 6. e3 {[%clk 0:03:01]}  Be7 {[%clk 0:02:56]} 7. Bd3 {[%clk 0:03:02]}  O-O {[%clk 0:02:56]} 8. Nge2 {[%clk 0:03:02]}  Nbd7 {[%clk 0:02:53]} 9. Qc2 {[%clk 0:03:02]}  Re8 {[%clk 0:02:52]} 10. O-O {[%clk 0:03:02]}  g6 {[%clk 0:02:52]} 11. Rad1 {[%clk 0:02:57]}  Nf8 {[%clk 0:02:51]} 12. f3 {[%clk 0:02:53]}  Ne6 {[%clk 0:02:51]} 13. Bh4 {[%clk 0:02:52]}  Nh5 {[%clk 0:02:42]} 14. Bf2 {[%clk 0:02:48]}  b6 {[%clk 0:02:11]} 15. Rfe1 {[%clk 0:02:35]}  f5 {[%clk 0:01:56]} 16. e4 {[%clk 0:02:20]}  Nhg7 {[%clk 0:01:38]} 17. exf5 {[%clk 0:02:07]}  Nxf5 {[%clk 0:01:33]} 18. Bxf5 {[%clk 0:02:05]}  gxf5 {[%clk 0:01:34]} 19. Ng3 {[%clk 0:01:52]}  Ng7 {[%clk 0:01:33]} 20. Be3 {[%clk 0:01:48]}  Bd6 {[%clk 0:01:30]} 21. Qd2 {[%clk 0:01:36]}  Qf6 {[%clk 0:01:23]} 22. Bg5 {[%clk 0:01:31]}  Qf7 {[%clk 0:01:19]} 23. Bf4 {[%clk 0:01:23]}  Bf8 {[%clk 0:01:14]} 24. Be5 {[%clk 0:01:20]}  Re6 {[%clk 0:00:54]} 25. Nce2 {[%clk 0:01:10]}  a5 {[%clk 0:00:34]} 26. Nf4 {[%clk 0:01:09]}  Bb4 {[%clk 0:00:34]} 27. Qc2 {[%clk 0:00:57]}  Bxe1 {[%clk 0:00:33]} 28. Rxe1 {[%clk 0:00:58]}  Re8 {[%clk 0:00:31]} 29. Qxc6 {[%clk 0:00:56]}  Bb7 {[%clk 0:00:24]} 30. Qh6 {[%clk 0:00:56]}  Rac8 {[%clk 0:00:20]} 31. Ngh5 {[%clk 0:00:53]}  Rc6 {[%clk 0:00:17]} 32. Qg5 {[%clk 0:00:34]}  h6 {[%clk 0:00:16]} 33. Qxg7+ {[%clk 0:00:32]}  Qxg7 {[%clk 0:00:16]} 34. Nxg7 {[%clk 0:00:33]}  Rxe5 {[%clk 0:00:13]} 35. Rxe5 {[%clk 0:00:34]}  Kxg7 {[%clk 0:00:14]} 36. Rxf5 {[%clk 0:00:33]}  Rc1+ {[%clk 0:00:12]} 37. Kf2 {[%clk 0:00:34]}  Rc2+ {[%clk 0:00:12]} 38. Kg3 {[%clk 0:00:34]}  Rxb2 {[%clk 0:00:12]} 39. Ne6+ {[%clk 0:00:34]}  Kg6 {[%clk 0:00:10]} 40. Rf8 {[%clk 0:00:32]}  Rxa2 {[%clk 0:00:08]} 41. f4 {[%clk 0:00:30]}  Ra3+ {[%clk 0:00:07]} 42. Kg4 {[%clk 0:00:29]}  h5+ {[%clk 0:00:06]} 43. Kh4 {[%clk 0:00:29]}  Ra2 {[%clk 0:00:04]} 44. f5+ {[%clk 0:00:29]}  Kh7 {[%clk 0:00:04]} 45. Rf7+ {[%clk 0:00:27]}  Kh6 {[%clk 0:00:03]} 46. Rxb7 {[%clk 0:00:18]}  Rxg2 {[%clk 0:00:03]} 47. h3 {[%clk 0:00:18]}  Rg8 {[%clk 0:00:01]} 48. Rf7 {[%clk 0:00:17]}  a4 {[%clk 0:00:01]} 49. Rf6+ {[%clk 0:00:18]}  Kh7 {[%clk 0:00:01]} 50. Ng5+ {[%clk 0:00:18]}  Kg7 {[%clk 0:00:01]} 51. Rg6+ {[%clk 0:00:17]}  Kf8 {[%clk 0:00:01]} 52. Rxb6 {[%clk 0:00:18]}  Rg7 {[%clk 0:00:01]} 53. Ne6+ {[%clk 0:00:18]}  Kf7 {[%clk 0:00:01]} 54. Nxg7 {[%clk 0:00:19]}  a3 {[%clk 0:00:01]} 55. Ra6 {[%clk 0:00:19]}  a2 {[%clk 0:00:02]} 56. Rxa2 {[%clk 0:00:19]}  Kf6 {[%clk 0:00:02]} 57. Nxh5+ {[%clk 0:00:19]}  Kf7 {[%clk 0:00:02]} 58. Ra6 {[%clk 0:00:18]}  Ke7 {[%clk 0:00:02]} 59. f6+ {[%clk 0:00:18]}  Kf7 {[%clk 0:00:02]} 60. Kg5 {[%clk 0:00:18]}  Ke8 {[%clk 0:00:02]} 61. Ra7 {[%clk 0:00:19]}  Kf8 {[%clk 0:00:02]} 62. Kg6 {[%clk 0:00:19]}  Ke8 {[%clk 0:00:02]} 63. f7+ {[%clk 0:00:19]}  Kf8 {[%clk 0:00:03]} 64. Ra8+ {[%clk 0:00:19]}  Ke7 {[%clk 0:00:04]} 65. f8=Q+ {[%clk 0:00:20]}  Kd7 {[%clk 0:00:04]} 66. Qf7+ {[%clk 0:00:20]}  Kc6 {[%clk 0:00:04]} 67. Ra6+ {[%clk 0:00:19]}  Kb5 {[%clk 0:00:05]} 68. Qb7+ {[%clk 0:00:19]}  Kc4 {[%clk 0:00:05]} 69. Qc6+ {[%clk 0:00:19]}  Kxd4 {[%clk 0:00:04]} 70. Ra4+ {[%clk 0:00:19]}  Ke3 {[%clk 0:00:04]} 71. Qc5+ {[%clk 0:00:19]}  d4 {[%clk 0:00:04]} 72. Qxd4+ {[%clk 0:00:19]}  Ke2 {[%clk 0:00:04]} 73. Ra2+ {[%clk 0:00:19]}  Kf3 {[%clk 0:00:05]} 74. Ra3+ {[%clk 0:00:18]}  Ke2 {[%clk 0:00:05]} 75. Qb2+ {[%clk 0:00:18]}  Kd1 {[%clk 0:00:06]} 76. Ra1# {[%clk 0:00:19]} 1-0


[Site "https://www.chess.com"]

[Event "Titled Tuesday Blitz June 6 Late 2023"]
[White "Eugene, Floryan"]
[Black "Mei, Austin"]
[WhiteFideId "20694784"]
[BlackFideId "30948479"]
[WhiteElo "2369"]
[BlackElo "2125"]
[Result "1-0"]
[Round "11"]
[TimeControl "180+2"]
[Date "2023.06.07"]
[WhiteClock "0:00:18"]
[BlackClock "0:00:11"]
[Board "43"]

1. d4 {[%clk 0:03:00]}  Nf6 {[%clk 0:02:58]} 2. c4 {[%clk 0:03:01]}  e6 {[%clk 0:02:58]} 3. g4 {[%clk 0:03:01]}  Nxg4 {[%clk 0:02:58]} 4. e4 {[%clk 0:03:01]}  Nf6 {[%clk 0:02:58]} 5. e5 {[%clk 0:03:00]}  Ng8 {[%clk 0:02:59]} 6. Nf3 {[%clk 0:02:53]}  d6 {[%clk 0:02:59]} 7. Bg5 {[%clk 0:02:34]}  Be7 {[%clk 0:02:58]} 8. Rg1 {[%clk 0:02:34]}  g6 {[%clk 0:02:56]} 9. Nc3 {[%clk 0:02:28]}  h6 {[%clk 0:02:55]} 10. Bf4 {[%clk 0:02:27]}  Nd7 {[%clk 0:02:47]} 11. Qc2 {[%clk 0:02:22]}  dxe5 {[%clk 0:02:40]} 12. dxe5 {[%clk 0:02:20]}  g5 {[%clk 0:02:25]} 13. Be3 {[%clk 0:02:07]}  b6 {[%clk 0:02:24]} 14. O-O-O {[%clk 0:01:53]}  Bb7 {[%clk 0:02:25]} 15. Nd4 {[%clk 0:01:51]}  Nxe5 {[%clk 0:02:22]} 16. Nxe6 {[%clk 0:01:50]}  Qxd1+ {[%clk 0:02:21]} 17. Nxd1 {[%clk 0:01:46]}  fxe6 {[%clk 0:02:21]} 18. f4 {[%clk 0:01:40]}  Nf7 {[%clk 0:02:14]} 19. Qg6 {[%clk 0:01:36]}  Nf6 {[%clk 0:02:01]} 20. fxg5 {[%clk 0:01:20]}  Rg8 {[%clk 0:01:58]} 21. Qc2 {[%clk 0:01:02]}  hxg5 {[%clk 0:01:56]} 22. Qa4+ {[%clk 0:00:56]}  Kf8 {[%clk 0:01:50]} 23. Bg2 {[%clk 0:00:50]}  Ne4 {[%clk 0:01:38]} 24. Nf2 {[%clk 0:00:46]}  Nfd6 {[%clk 0:01:32]} 25. c5 {[%clk 0:00:40]}  Nxc5 {[%clk 0:01:16]} 26. Bxc5 {[%clk 0:00:39]}  bxc5 {[%clk 0:01:17]} 27. Bxb7 {[%clk 0:00:37]}  Nxb7 {[%clk 0:01:18]} 28. Qc6 {[%clk 0:00:31]}  Rb8 {[%clk 0:01:12]} 29. Qxe6 {[%clk 0:00:30]}  Nd6 {[%clk 0:01:05]} 30. Ng4 {[%clk 0:00:30]}  Rg7 {[%clk 0:00:49]} 31. Rf1+ {[%clk 0:00:30]}  Rf7 {[%clk 0:00:50]} 32. Rxf7+ {[%clk 0:00:21]}  Nxf7 {[%clk 0:00:51]} 33. Ne3 {[%clk 0:00:19]}  Bd6 {[%clk 0:00:47]} 34. Nf5 {[%clk 0:00:18]}  Re8 {[%clk 0:00:43]} 35. Qg6 {[%clk 0:00:18]}  Be5 {[%clk 0:00:34]} 36. Nh6 {[%clk 0:00:19]}  Bf4+ {[%clk 0:00:30]} 37. Kc2 {[%clk 0:00:18]}  Nxh6 {[%clk 0:00:30]} 38. Qxh6+ {[%clk 0:00:19]}  Ke7 {[%clk 0:00:31]} 39. Qh7+ {[%clk 0:00:18]}  Kd8 {[%clk 0:00:31]} 40. Qf5 {[%clk 0:00:18]}  Re2+ {[%clk 0:00:30]} 41. Kb3 {[%clk 0:00:17]}  Rxh2 {[%clk 0:00:31]} 42. Qxc5 {[%clk 0:00:16]}  a6 {[%clk 0:00:25]} 43. Qf8+ {[%clk 0:00:15]}  Kd7 {[%clk 0:00:25]} 44. Qg7+ {[%clk 0:00:16]}  Kc6 {[%clk 0:00:25]} 45. Kc4 {[%clk 0:00:17]}  Kb7 {[%clk 0:00:23]} 46. Kd5 {[%clk 0:00:16]}  Rd2+ {[%clk 0:00:22]} 47. Ke4 {[%clk 0:00:16]}  Rd6 {[%clk 0:00:22]} 48. Kf3 {[%clk 0:00:15]}  Rb6 {[%clk 0:00:20]} 49. b3 {[%clk 0:00:15]}  Rd6 {[%clk 0:00:20]} 50. Qc3 {[%clk 0:00:15]}  Rc6 {[%clk 0:00:21]} 51. Qb4+ {[%clk 0:00:15]}  Rb6 {[%clk 0:00:20]} 52. Qc4 {[%clk 0:00:15]}  Rd6 {[%clk 0:00:19]} 53. a4 {[%clk 0:00:16]}  Rc6 {[%clk 0:00:16]} 54. Qd5 {[%clk 0:00:16]}  Kb6 {[%clk 0:00:15]} 55. a5+ {[%clk 0:00:16]}  Kb7 {[%clk 0:00:16]} 56. Kg4 {[%clk 0:00:16]}  Be3 {[%clk 0:00:15]} 57. b4 {[%clk 0:00:16]}  Ba7 {[%clk 0:00:10]} 58. b5 {[%clk 0:00:16]}  axb5 {[%clk 0:00:11]} 59. Qxb5+ {[%clk 0:00:16]}  Bb6 {[%clk 0:00:11]} 60. a6+ {[%clk 0:00:13]}  Ka7 {[%clk 0:00:09]} 61. Qxc6 {[%clk 0:00:13]}  Kxa6 {[%clk 0:00:09]} 62. Kxg5 {[%clk 0:00:14]}  Ka5 {[%clk 0:00:09]} 63. Kf5 {[%clk 0:00:14]}  Kb4 {[%clk 0:00:10]} 64. Ke4 {[%clk 0:00:15]}  Ka5 {[%clk 0:00:11]} 65. Kd3 {[%clk 0:00:15]}  Kb4 {[%clk 0:00:12]} 66. Qc4+ {[%clk 0:00:15]}  Ka5 {[%clk 0:00:12]} 67. Kc2 {[%clk 0:00:15]}  c5 {[%clk 0:00:08]} 68. Kb3 {[%clk 0:00:16]}  Ba7 {[%clk 0:00:07]} 69. Kc2 {[%clk 0:00:15]}  Kb6 {[%clk 0:00:08]} 70. Kd3 {[%clk 0:00:16]}  Kb7 {[%clk 0:00:09]} 71. Ke4 {[%clk 0:00:17]}  Kb6 {[%clk 0:00:09]} 72. Kd5 {[%clk 0:00:17]}  Bb8 {[%clk 0:00:10]} 73. Ke6 {[%clk 0:00:17]}  Bc7 {[%clk 0:00:11]} 74. Kd7 {[%clk 0:00:18]}  Bf4 {[%clk 0:00:10]} 75. Qe6+ {[%clk 0:00:17]}  Kb5 {[%clk 0:00:11]} 76. Qb3+ {[%clk 0:00:18]}  Ka5 {[%clk 0:00:11]} 77. Kc6 {[%clk 0:00:18]} 1-0


[Site "https://www.chess.com"]

[Event "Titled Tuesday Blitz June 6 Late 2023"]
[White "Santos Flores, Alberto"]
[Black "Fiorito, Joaquin"]
[WhiteFideId "3601234"]
[BlackFideId "180173"]
[WhiteElo "2235"]
[BlackElo "2199"]
[Result "0-1"]
[Round "11"]
[TimeControl "180+2"]
[Date "2023.06.07"]
[WhiteClock "0:01:14"]
[BlackClock "0:01:38"]
[Board "45"]

1. e4 {[%clk 0:03:00]}  c6 {[%clk 0:02:58]} 2. d4 {[%clk 0:03:00]}  d5 {[%clk 0:02:58]} 3. Nc3 {[%clk 0:03:00]}  dxe4 {[%clk 0:02:58]} 4. Nxe4 {[%clk 0:03:01]}  Nf6 {[%clk 0:02:59]} 5. Nxf6+ {[%clk 0:03:01]}  exf6 {[%clk 0:03:00]} 6. c3 {[%clk 0:02:57]}  Bd6 {[%clk 0:03:00]} 7. Bd3 {[%clk 0:02:57]}  O-O {[%clk 0:03:01]} 8. Ne2 {[%clk 0:02:57]}  Re8 {[%clk 0:03:01]} 9. O-O {[%clk 0:02:56]}  Nd7 {[%clk 0:03:01]} 10. Ng3 {[%clk 0:02:56]}  g6 {[%clk 0:02:59]} 11. Re1 {[%clk 0:02:48]}  Rxe1+ {[%clk 0:02:55]} 12. Qxe1 {[%clk 0:02:48]}  f5 {[%clk 0:02:55]} 13. Bh6 {[%clk 0:02:46]}  Nf6 {[%clk 0:02:54]} 14. Bc4 {[%clk 0:02:42]}  Ng4 {[%clk 0:02:51]} 15. Bd2 {[%clk 0:02:38]}  Bd7 {[%clk 0:02:42]} 16. h3 {[%clk 0:02:38]}  Nf6 {[%clk 0:02:40]} 17. Bh6 {[%clk 0:02:35]}  Qc7 {[%clk 0:02:38]} 18. Qd2 {[%clk 0:02:32]}  Re8 {[%clk 0:02:33]} 19. Re1 {[%clk 0:02:32]}  Bxg3 {[%clk 0:02:28]} 20. fxg3 {[%clk 0:02:27]}  Qxg3 {[%clk 0:02:26]} 21. Rxe8+ {[%clk 0:02:24]}  Bxe8 {[%clk 0:02:26]} 22. Qe2 {[%clk 0:02:19]}  Ne4 {[%clk 0:02:20]} 23. Bd3 {[%clk 0:02:18]}  Qh4 {[%clk 0:02:14]} 24. Bc1 {[%clk 0:02:16]}  Bd7 {[%clk 0:02:12]} 25. Bxe4 {[%clk 0:02:16]}  fxe4 {[%clk 0:02:13]} 26. Qf2 {[%clk 0:02:15]}  Qh5 {[%clk 0:02:09]} 27. Be3 {[%clk 0:02:08]}  Be6 {[%clk 0:02:06]} 28. Qf6 {[%clk 0:02:04]}  Qf5 {[%clk 0:01:42]} 29. Qxf5 {[%clk 0:01:44]}  Bxf5 {[%clk 0:01:43]} 30. g4 {[%clk 0:01:45]}  Be6 {[%clk 0:01:44]} 31. Kh2 {[%clk 0:01:45]}  Bxa2 {[%clk 0:01:43]} 32. g5 {[%clk 0:01:43]}  Be6 {[%clk 0:01:43]} 33. h4 {[%clk 0:01:40]}  Kf8 {[%clk 0:01:43]} 34. Bf4 {[%clk 0:01:39]}  Ke7 {[%clk 0:01:43]} 35. Be5 {[%clk 0:01:39]}  a5 {[%clk 0:01:43]} 36. Kg3 {[%clk 0:01:38]}  Bf5 {[%clk 0:01:43]} 37. Kf4 {[%clk 0:01:37]}  Ke6 {[%clk 0:01:43]} 38. Bc7 {[%clk 0:01:37]}  a4 {[%clk 0:01:43]} 39. Be5 {[%clk 0:01:37]}  Kd5 {[%clk 0:01:43]} 40. Bg7 {[%clk 0:01:34]}  Kc4 {[%clk 0:01:43]} 41. Bf8 {[%clk 0:01:31]}  Kd3 {[%clk 0:01:43]} 42. c4 {[%clk 0:01:23]}  Kxd4 {[%clk 0:01:38]} 43. Bb4 {[%clk 0:01:15]}  Kxc4 {[%clk 0:01:38]} 44. Bc3 {[%clk 0:01:15]}  b5 {[%clk 0:01:38]} 45. Ke3 {[%clk 0:01:15]}  b4 {[%clk 0:01:37]} 46. Be5 {[%clk 0:01:15]}  c5 {[%clk 0:01:38]} 47. h5 {[%clk 0:01:14]}  gxh5 {[%clk 0:01:38]} 0-1


[Site "https://www.chess.com"]